Cogmind - Beta 10.2 @@@ ROGUE MODE // 2021.02.19 @ 19:54:18 Player: CrossedViper Result: Destroyed by 1C-UTU with 1C-UTU's Sword "Choppy" Performance ------------- Evolutions (1) 500 Regions Visited (6) 1200 Robots Destroyed (62) 310 Value Destroyed (1150) 1150 Prototype IDs (28) 560 Alien Tech Used (0) 0 Bonus (300) 300 TOTAL SCORE: 4020 Bonus ------- Aligned with FarCom 300 Cogmind --------- Core Integrity 0/400 Matter 146/300 Energy 310/310 System Corruption 1% Temperature Cool (39) Movement Treading (220) Ox3 Location -8/Mines Parts ------- > --- POWER (1) -------- Reinforced Fission Core > --- PROPULSION (2) --- Light Treads > --- UTILITY (4) ------ Large Storage Unit High-capacity Storage Unit > --- WEAPON (2) ------- (None) > --- INVENTORY (18) --- Combat Antigrav System Flying Fortress v7 Experimental Heat Sink Hacking Suite Decoy Drone Bay AS-neutralizer No. 17b Autogun Improved Assault Rifle Rocket Launcher Rocket Launcher Deploy-a-Sentry Peak State ------------ > --- POWER ------------ Reinforced Fission Core > --- PROPULSION ------- Light Treads Light Treads > --- UTILITY ---------- Large Storage Unit High-capacity Storage Unit Core Shielding Hardened Light Armor Plating > --- WEAPON ----------- 8R-AWN's Boregun 8R-AWN's Boregun > --- INVENTORY -------- Light Treads Light Treads Combat Antigrav System Flying Fortress v7 Experimental Heat Sink Hacking Suite Decoy Drone Bay AS-neutralizer No. 17b Autogun Improved Assault Rifle Rocket Launcher Rocket Launcher Longsword +1 Deploy-a-Sentry [Rating: 42] Favorites ----------- Power Ion Engine Engine Ion Engine Power Core Reinforced Fission Core Propulsion Light Treads Treads Light Treads Leg Aluminum Leg Utility Large Storage Unit Device Gravity Neutralizing Apparatus Storage Large Storage Unit Protection Core Shielding Weapon Autogun Ballistic Gun Autogun Launcher Rocket Launcher Special Weapon Plasma Cutter Slashing Weapon Longsword +1 Build | -11 -10 -10 -9 -9 -9 -8 ------- Run | Scr Mat Min Mat Min Exi Min Slots Evolved 2 | . . . 2 . . . Power . | . . . . . . . Propulsion . | . . . . . . . Utility 2 | . . . 2 . . . Weapon . | . . . . . . . Parts Attached 53 | . 13 4 10 3 17 6 Power 4 | . 1 . 1 . 2 . Engine 3 | . 1 . 1 . 1 . Core 1 | . . . . . 1 . Reactor . | . . . . . . . Propulsion 12 | . 4 1 2 . 3 2 Treads 12 | . 4 1 2 . 3 2 Leg . | . . . . . . . Wheel . | . . . . . . . Hover . | . . . . . . . Flight . | . . . . . . . Utility 13 | . 2 . 4 1 6 . Device 3 | . . . . . 3 . Storage 3 | . 1 . 1 1 . . Processor . | . . . . . . . Hackware . | . . . . . . . Protection 7 | . 1 . 3 . 3 . Artifact . | . . . . . . . Weapon 24 | . 6 3 3 2 6 4 Energy Gun . | . . . . . . . Energy Cannon . | . . . . . . . Ballistic Gun 13 | . 3 2 2 1 3 2 Ballistic Cannon . | . . . . . . . Launcher 8 | . 3 1 1 1 1 1 Special Weapon 1 | . . . . . 1 . Impact Weapon . | . . . . . . . Slashing Weapon 2 | . . . . . 1 1 Piercing Weapon . | . . . . . . . Special Melee Weapon . | . . . . . . . Unidentified Prototypes 5 | . . . 1 . 4 . Parts Lost 23 | . . 4 4 . 8 7 Power 2 | . . . . . 2 . Propulsion 7 | . . 1 2 . 2 2 Utility 4 | . . . 1 . 1 2 Weapon 10 | . . 3 1 . 3 3 Highest Loss Streak 7 | . . 3 2 . 7 7 Average Slot Usage (%) 95 | . 99 92 94 100 92 88 Engine 10 | . 14 14 11 11 7 . Treads 22 | . 19 27 21 22 22 18 Leg 1 | . 8 . . . . . Storage 20 | . 14 14 21 25 26 22 Protection 15 | . 13 14 18 18 13 18 Ballistic Gun 15 | . 15 6 19 21 15 7 Launcher 6 | . 12 14 2 . . 5 Slashing Weapon 1 | . . . . . 5 5 Naked Turns . | . . . . . . . Heaviest Build 84 | 10 30 30 71 80 84 84 Greatest Support 52 | 20 40 40 40 40 52 40 Greatest Overweight (x) 3 | . 1 1 3 1 2 3 Average Overweight (x) . | . . . . 1 1 2 Largest Inventory Capacity 24 | . 10 10 18 24 24 18 Average Capacity 15 | . 7 10 17 19 20 18 Most Carried 24 | . 10 10 18 20 24 18 Average Carried 12 | . 6 8 13 18 17 17 Final Capacity 24 | 6 10 10 18 24 18 18 Final Carried 20 | 6 10 8 18 20 18 15 Class Distribution -------------------- 80% | Mutant 15% | Hauler-Mutant 4% | Scavenger-Mutant Dominant Class ---------------- Mutant | -10/Materials Mutant | -10/Mines Mutant | -9/Materials Mutant | -9/Mines Mutant | -9/Exiles Mutant | -8/Mines Resources | -11 -10 -10 -9 -9 -9 -8 ----------- Run | Scr Mat Min Mat Min Exi Min Matter Collected 1743 | 200 258 355 418 89 423 . Remotely . | . . . . . . . Salvage Created 1819 | . 432 33 710 174 461 9 Parts 143 | . 36 1 38 5 58 5 Haulers Intercepted 6 | . 2 . 4 . . . Recyclers Shooed 2 | . . . 1 1 . . Parts Field Recycled . | . . . . . . . Retrieved Matter . | . . . . . . . Parts Self-Destructed . | . . . . . . . Prevented . | . . . . . . . Kills | -11 -10 -10 -9 -9 -9 -8 ------- Run | Scr Mat Min Mat Min Exi Min Combat Hostiles Destroyed 49 | . 15 8 9 5 8 4 Melee 1 | . . . . . 1 . Guns 19 | . 10 1 5 3 . . AOE 29 | . 5 7 4 2 7 4 Classes Destroyed 14 | . 7 2 2 1 2 . Worker 3 | . 1 . 2 . . . Builder 2 | . 2 . . . . . Tunneler 1 | . . 1 . . . . Hauler 6 | . 2 . 4 . . . Recycler 2 | . . . 2 . . . Operator 2 | . 2 . . . . . Turret 1 | . . . . . 1 . Watcher 3 | . 1 . 2 . . . Swarmer 13 | . 6 . 3 . . 4 Grunt 16 | . 9 . 4 3 . . Brawler 2 | . . . . 2 . . Sentry 2 | . . . 2 . . . Zionite 6 | . . . . . 6 . Assembled 15 | . . 8 . . 7 . Best Kill Streak 8 | . 4 6 8 3 7 4 Combat Bots Only 7 | . 3 6 5 3 7 4 Max Kills in Single Turn 4 | . 3 2 4 1 2 3 Gunslinging 1 | . 1 . . . . . Exploded 3 | . 2 2 3 1 2 3 Melee 1 | . . . . . 1 . Uniques/NPCs Destroyed 4 | . . . . . 4 . 8R-AWN (-9/Exiles) EX-DEC (-9/Exiles) EX-HEX (-9/Exiles) EX-BIN (-9/Exiles) Combat | -11 -10 -10 -9 -9 -9 -8 -------- Run | Scr Mat Min Mat Min Exi Min Damage Taken 3572 | . 483 529 341 122 1021 1076 Core 560 | . 70 74 53 25 173 165 Absorbed by Shields . | . . . . . . . Core Remaining (%) 71 | 100 . 42 . . . . Volleys Fired 163 | . 46 9 40 10 49 9 Largest 2 | . 2 2 2 2 1 2 Hottest 66 | . 66 66 46 46 33 60 Shots Fired 260 | . 92 12 77 16 49 14 Gun 212 | . 73 4 74 13 37 11 Cannon . | . . . . . . . Launcher 45 | . 19 8 3 3 9 3 Special 3 | . . . . . 3 . Kinetic 212 | . 73 4 74 13 37 11 Thermal 3 | . . . . . 3 . Explosive 45 | . 19 8 3 3 9 3 Electromagnetic . | . . . . . . . Robot Hit Streak 20 | . 20 3 9 5 7 8 Robot Miss Streak 4 | . 3 2 3 3 4 2 Penetration Max 1 | . . . . . 1 . Secondary Targets 6 | . 4 . 1 1 . . Max Gunslinging Chain 1 | . 1 . 1 1 . . Shots Hit Robots 188 | . 54 3 55 11 56 9 Core Hits 122 | . 36 18 24 8 26 10 Critical Hits 18 | . . . 2 . 12 4 Critical Kills 5 | . . . 2 . 3 . Critical Parts Destroyed 9 | . . . . . 7 2 Melee Attacks 33 | . . . . . 32 1 Impact . | . . . . . . . Slashing 33 | . . . . . 32 1 Piercing . | . . . . . . . Sneak Attacks 3 | . . . . . 3 . Combat Hostiles . | . . . . . . . Follow-up Attacks . | . . . . . . . Damage Inflicted 6793 | . 1649 682 1095 464 2530 373 Guns 2112 | . 584 28 809 115 425 151 Cannons . | . . . . . . . Explosions 2835 | . 1054 629 272 283 405 192 Melee 1728 | . . . . . 1698 30 Ramming 116 | . 11 25 14 66 . . Kinetic 2112 | . 584 28 809 115 425 151 Thermal 2 | . . . . . 2 . Explosive 2835 | . 1054 629 272 283 405 192 Electromagnetic . | . . . . . . . Impact . | . . . . . . . Slashing 1728 | . . . . . 1698 30 Piercing . | . . . . . . . Highest Corruption 2 | . 2 2 . . 1 1 Average Corruption 1 | . 2 2 . . 1 1 Corruption Purged . | . . . . . . . Effects 9 | . . 5 . . 3 1 Message Errors 3 | . . 1 . . 2 . Heat Flow Errors 1 | . . 1 . . . . Energy Discharges 3 | . . 2 . . 1 . Data Loss (minor) 1 | . . 1 . . . . Targeting Errors 1 | . . . . . . 1 Overload Shots . | . . . . . . . Overflow Damage 179 | . 90 23 16 . 9 41 Projectiles . | . . . . . . . Explosions 179 | . 90 23 16 . 9 41 Melee . | . . . . . . . Knockbacks . | . . . . . . . Impact . | . . . . . . . Kinetic . | . . . . . . . Secondary . | . . . . . . . Self-Inflicted Damage 226 | . . 145 . 71 10 . Shots 8 | . . 4 . 3 1 . Rammed 19 | . 5 5 2 7 . . Targets Rammed 22 | . 7 6 2 7 . . Kicked 1 | . 1 . . . . . Crushed 2 | . 1 1 . . . . Highest Temperature 188 | . 18 188 30 16 17 143 Average Temperature 23 | . 6 53 8 7 12 63 Received Heat Transfer 432 | . 201 100 99 12 20 . Siege Activations . | . . . . . . . Robots Corrupted . | . . . . . . . Combat Hostiles . | . . . . . . . Parts Fried . | . . . . . . . Impact Corruptions . | . . . . . . . Robots Melted . | . . . . . . . Combat Hostiles . | . . . . . . . Parts Melted . | . . . . . . . Heat Transferred 18 | . . . . . 18 . Parts Sabotaged . | . . . . . . . Parts Stolen . | . . . . . . . Parts Stripped . | . . . . . . . Power Chain Reactions . | . . . . . . . Missiles Intercepted . | . . . . . . . Alert | -11 -10 -10 -9 -9 -9 -8 ------- Run | Scr Mat Min Mat Min Exi Min Peak Influence 337 | . 337 77 335 218 . 149 Initial 72 | . . 72 . 68 . . Average 105 | . 149 31 132 115 . 107 Maximum Alert Level 1 | . 1 . 1 1 . . Low Security (%) 85 | . 79 100 77 82 . 100 Level 1 14 | . 20 . 22 17 . . Level 2 . | . . . . . . . Level 3 . | . . . . . . . Level 4 . | . . . . . . . Level 5 . | . . . . . . . High Security . | . . . . . . . Max Security . | . . . . . . . Squads Dispatched 2 | . 2 . . . . . Investigation 2 | . 2 . . . . . Extermination . | . . . . . . . Reinforcement . | . . . . . . . Assault . | . . . . . . . Garrison . | . . . . . . . Intercept . | . . . . . . . Construction Impeded . | . . . . . . . Haulers Reinforced . | . . . . . . . Stealth | -11 -10 -10 -9 -9 -9 -8 --------- Run | Scr Mat Min Mat Min Exi Min Distress Signals 1 | . . . 1 . . . Communications Jammed . | . . . . . . . Distress Signals . | . . . . . . . Times Spotted 93 | . 23 16 18 5 26 5 Peak Tracking Total 9 | . 4 8 7 3 9 5 Tactical Retreats 17 | . . 6 1 . 10 . Traps | -11 -10 -10 -9 -9 -9 -8 ------- Run | Scr Mat Min Mat Min Exi Min Traps Triggered 3 | . 2 . 1 . . . Indirectly . | . . . . . . . Trap Hack Attempts . | . . . . . . . Triggered . | . . . . . . . Disarmed . | . . . . . . . Reprogrammed . | . . . . . . . Reused . | . . . . . . . Traps Extracted . | . . . . . . . Installed . | . . . . . . . Triggered . | . . . . . . . Machines | -11 -10 -10 -9 -9 -9 -8 ---------- Run | Scr Mat Min Mat Min Exi Min Machines Disabled 25 | . 5 . 1 1 15 3 Max in Single Turn 3 | . 3 . 1 1 3 1 Machines Sabotaged . | . . . . . . . Garrisons Compromised . | . . . . . . . Overloaded Fab Kills . | . . . . . . . Fab Network Shutdowns . | . . . . . . . Hacking | -11 -10 -10 -9 -9 -9 -8 --------- Run | Scr Mat Min Mat Min Exi Min Machines Accessed 9 | . 3 1 2 1 2 . Terminals 4 | . 2 . 2 . . . Fabricators . | . . . . . . . Repair Stations . | . . . . . . . Recycling Units 1 | . 1 . . . . . Scanalyzers . | . . . . . . . Garrison Access . | . . . . . . . Total Hacks 14 | . 6 1 4 1 2 . Successful 9 | . 2 1 3 1 2 . Failed 5 | . 4 . 1 . . . Catastrophic 1 | . . . 1 . . . Database Lockouts . | . . . . . . . Manual 11 | . 6 . 4 . 1 . Terminals 9 | . 5 . 4 . . . Fabricators . | . . . . . . . Repair Stations . | . . . . . . . Recycling Units 1 | . 1 . . . . . Scanalyzers . | . . . . . . . Garrison Access . | . . . . . . . Terminal Hacks 7 | . 1 1 2 1 2 . Record 1 | . . . . . 1 . Robot Analysis 2 | . 1 . 1 . . . Open Door 2 | . . 1 . 1 . . Branch Access Points 1 | . . . 1 . . . EX-Prototype ID Bank 1 | . . . . . 1 . Fabricator Hacks . | . . . . . . . Repair Station Hacks . | . . . . . . . Recycling Unit Hacks . | . . . . . . . Scanalyzer . | . . . . . . . Garrison Access Hacks . | . . . . . . . Unauthorized Hacks 2 | . 1 . 1 . . . Terminals 1 | . . . 1 . . . Track 1 | . . . 1 . . . Fabricators . | . . . . . . . Repair Stations . | . . . . . . . Recycling Units 1 | . 1 . . . . . Tunnel 1 | . 1 . . . . . Scanalyzers . | . . . . . . . Garrison Access . | . . . . . . . Data Cores Recovered . | . . . . . . . Used . | . . . . . . . Hacking Detections 3 | . 1 . 2 . . . Full Trace Events 1 | . 1 . . . . . Feedback Events . | . . . . . . . Feedback Blocked . | . . . . . . . Robot Schematics Acquired . | . . . . . . . Robots Built . | . . . . . . . Matter . | . . . . . . . Time . | . . . . . . . Total Robot Build Rating . | . . . . . . . Part Schematics Acquired . | . . . . . . . Parts Built . | . . . . . . . Matter . | . . . . . . . Time . | . . . . . . . Total Part Build Rating . | . . . . . . . Parts Repaired . | . . . . . . . Time . | . . . . . . . Parts Recycled . | . . . . . . . Recycled Matter . | . . . . . . . Retrieved Matter . | . . . . . . . Retrieved Components . | . . . . . . . Parts Scanalyzed . | . . . . . . . Part Schematics Acquired . | . . . . . . . Parts Damaged . | . . . . . . . Bothacking | -11 -10 -10 -9 -9 -9 -8 ------------ Run | Scr Mat Min Mat Min Exi Min Used RIF Installer . | . . . . . . . Robots Hacked . | . . . . . . . Non-combat . | . . . . . . . Combat . | . . . . . . . Robot Hacks Applied . | . . . . . . . Relay Couplers Released . | . . . . . . . Robots Rewired . | . . . . . . . Allies Hacked . | . . . . . . . Hacks Repelled . | . . . . . . . Allies | -11 -10 -10 -9 -9 -9 -8 -------- Run | Scr Mat Min Mat Min Exi Min Total Allies . | . . . . . . . Largest Group . | . . . . . . . Highest-Rated Group . | . . . . . . . Highest-Rated Ally . | . . . . . . . Total Orders . | . . . . . . . Ally Attacks . | . . . . . . . Total Damage . | . . . . . . . Kills . | . . . . . . . Allies Corrupted . | . . . . . . . Allies Melted . | . . . . . . . Intel | -11 -10 -10 -9 -9 -9 -8 ------- Run | Scr Mat Min Mat Min Exi Min Robot Analysis Total 2 | . 1 . 1 . . . Derelict Logs Recovered 4 | . . 1 . 3 . . Drone Launches . | . . . . . . . Drone Recoveries . | . . . . . . . Exploration | -11 -10 -10 -9 -9 -9 -8 ------------- Run | Scr Mat Min Mat Min Exi Min Turns Passed 4510 | . 917 880 692 667 1297 57 Spaces Moved 2125 | 1 490 371 308 347 597 11 Core . | . . . . . . . Treads 1945 | . 311 371 308 347 597 11 Legs 180 | 1 179 . . . . . Wheels . | . . . . . . . Hover . | . . . . . . . Flight . | . . . . . . . Fastest Speed 120 | 120 120 160 160 180 180 200 Average Speed 168 | 120 145 160 178 180 181 201 Slowest Speed 220 | 120 180 180 220 180 200 220 Overloaded Moves . | . . . . . . . Propulsion Burnouts . | . . . . . . . Robots Hopped . | . . . . . . . Cave-ins Triggered . | . . . . . . . Exploration Rate (%) 52 | 2 84 71 33 86 88 6 Regions Visited 6 Branch Regions 4 Pre-discovered Areas 3 | . 1 1 . . 1 . Known Exits Taken 2 | . . . 1 1 . . Unknown Exits Taken 4 | 1 1 1 . . 1 . Scrap Searched 3 | . . 1 . 2 . . Spaces Dug 60 | . 14 40 . . 6 . Terrain Destroyed 324 | . 119 71 27 22 56 29 Melee . | . . . . . . . Projectile 11 | . . . . . 7 4 AOE 313 | . 119 71 27 22 49 25 Terrain Rammed . | . . . . . . . Walls Destroyed . | . . . . . . . Machines Disabled . | . . . . . . . Actions | -11 -10 -10 -9 -9 -9 -8 --------- Run | Scr Mat Min Mat Min Exi Min Total 2764 | . 607 642 387 369 730 29 Wait 293 | . 25 251 . . 15 2 Move 2119 | . 489 370 307 346 596 11 Hop . | . . . . . . . Pick Up 50 | . 15 2 20 2 11 . Fast Attach 12 | . 3 . 3 . 6 . Attach 21 | . 2 4 4 1 7 3 Detach . | . . . . . . . Swap 21 | . 8 . 4 2 4 3 Drop 30 | . 12 . 7 1 10 . Fire 163 | . 46 9 40 10 49 9 Melee 33 | . . . . . 32 1 Ram . | . . . . . . . Kick 2 | . 2 . . . . . Crush 20 | . 5 6 2 7 . . Escape Stasis . | . . . . . . . Rewire . | . . . . . . . Trap . | . . . . . . . Miscellaneous . | . . . . . . . Route ------- -11/Scrapyard -10/Materials (discovered 4 exits: *Mat x3 / *Min) -10/Mines -9/Materials (discovered 2 exits: *Min x2) -9/Mines (discovered 3 exits: [*Mat x2] / *Exi) -9/Exiles -8/Mines History --------- Turn | Location | Event 1 | -11/Scrapyard | Discovered new exit (range 0) 1 | -11/Scrapyard | Entered Materials 303 | -10/Materials | Build established: Mutant 436 | -10/Materials | Discovered new exit (range 12) 616 | -10/Materials | Discovered new exit (range 10) 782 | -10/Materials | Discovered new exit (range 8) 894 | -10/Materials | Discovered new exit (range 10) 918 | -10/Materials | Entered Mines 1043 | -10/Mines | Met a Derelict who couldn't figure out how to use a Trap Extractor 1099 | -10/Mines | Assembled infested the area 1174 | -10/Mines | Core integrity fell below 50% 1207 | -10/Mines | Lost 3 parts (1n2w) 1758 | -10/Mines | Received a Rocket Launcher from a helpful Derelict 1771 | -10/Mines | Discovered new exit (range 13) 1798 | -10/Mines | Entered Materials 1798 | -9/Materials | Evolved 2 slots: Utility x2 2114 | -9/Materials | Identified exit to Mines 2490 | -9/Materials | Entered Mines 2622 | -9/Mines | Learned location of 1 exit from Proximity Caves 2644 | -9/Mines | Discovered new exit (range 11) 2792 | -9/Mines | Discovered new exit (range 9) 2821 | -9/Mines | Learned Materials security intel 2938 | -9/Mines | Identified exit to Exiles 2951 | -9/Mines | Found the Drone Emporium 2959 | -9/Mines | Found Prototype Device 3150 | -9/Mines | Deemed a non-threat by the Exiles lab entrance 3157 | -9/Mines | Entered Exiles 3199 | -9/Exiles | Met 8R-AWN 3228 | -9/Exiles | Met EX-HEX 3264 | -9/Exiles | Build established: Hauler-Mutant 3307 | -9/Exiles | Met EX-DEC 3409 | -9/Exiles | Learned location of Zion (-6) 3453 | -9/Exiles | Met EX-BIN 3474 | -9/Exiles | Aligned with FarCom system 3476 | -9/Exiles | Given EX-Vault access code 3519 | -9/Exiles | Opened EX-Vault 3530 | -9/Exiles | Found Longsword +1 3535 | -9/Exiles | Found Flying Fortress v7 3570 | -9/Exiles | Warned to stay clear of 0b10 Research branches 3697 | -9/Exiles | Attacked by the Exiles 3756 | -9/Exiles | Destroyed 7 combat bots 3854 | -9/Exiles | Core integrity fell below 50% 3868 | -9/Exiles | Destroyed 8R-AWN 3875 | -9/Exiles | Found Prototype Ballistic Gun 3880 | -9/Exiles | Found Prototype Ballistic Gun 3881 | -9/Exiles | Identified 8R-AWN's Boregun (x2) 3884 | -9/Exiles | Lost 7 parts (1p2n1u3w) 3931 | -9/Exiles | Found Prototype Device 3931 | -9/Exiles | Identified AS-neutralizer No. 17b 3963 | -9/Exiles | Build established: Mutant 4093 | -9/Exiles | Destroyed EX-DEC 4168 | -9/Exiles | Destroyed EX-HEX 4179 | -9/Exiles | Destroyed EX-BIN 4240 | -9/Exiles | Found Deploy-a-Sentry 4434 | -9/Exiles | Discovered new exit (range 10) 4454 | -9/Exiles | Stole three prototypes: Longsword +1, Flying Fortress v7, Deploy-a-Sentry 4454 | -9/Exiles | Entered Mines 4488 | -8/Mines | 1C-UTU came to Exiles' defense 4505 | -8/Mines | Core integrity fell below 20% 4511 | -8/Mines | Destroyed by 1C-UTU with 1C-UTU's Sword "Choppy" Last Messages --------------- 04499_ Lgt. Treads severed. 04499_ 1C-UTU follow-up attacks with Prototype Slashing Weapon. 04499_ HV Slug penetrates Core Extractor. 04499_ Core Extractor disabled. 04499_ HV Slug penetrates Core Extractor. 04499_ HV Slug penetrates 1C-UTU. 04499_ HV Slug penetrates Wall. 04502_ 8R-AWN's Boregun destroyed. 04502_ HV Slug penetrates 1C-UTU. 04502_ HV Slug penetrates Wall. 04503_ Critical hit. 04503_ 8R-AWN's Boregun destroyed. 04503_ 1C-UTU follow-up attacks with Prototype Slashing Weapon. 04503_ Critical hit. 04503_ Lgt. Treads destroyed. 04504_ Core Shielding destroyed. 04504_ 1C-UTU follow-up attacks with Prototype Slashing Weapon. 04505_ Hrd. Light Armor Plating destroyed. 04508_ Lgt. Treads destroyed. 04509_ Longsword +1 destroyed. Map ----- +----------------------------------------------------+ | ??????????????????????????????????? | | ??????????????????????????????????? | | ??????????????????????????????????? | | ??????????????????????????????????? | | ??????????????????????????????????? | | ??????????????????????????????????? | | ??????????????????????????????????? | | ??????????????????????????????????? | | ??????????????????????????????????? | | ??????????????????????????????????? | | ??????????????????????????????????? | | ??????????????????????????????????? | | ??????????????????????????????????? | | ??????????????????????????????????? | | ??????????????????????????????????? | | ??????????????????????????????????? | | ??????????????????????????????????? | | ??????????????????????????????????? | | ??????????????????????????????????? | | ??????????????????????????????????? | | ??????????????????????????????????? | | ??????????????????????????????????? | | ??????????????????????????????????? | | ?????????????????#############????? | | ?????? ### #????? | | ???????????#;; l@ #????? | | ?????????????##### " " " #????? | | ?????????????????# """ "" #????? | | ?????????????????# """ """ #????? | | ?????????????????# %= #????? | | ?????????????????# =% #????? | | ?????????????????# = #????? | | ?????????????????# #???? | | ?????????????????# #???? | | ?????????????????# ##???? | | ?????????????????### ##????? | | ??????????????????? #?????? | | ???????????????????# ## #?????? | | ????????????????????####?####?????? | | ??????????????????????????????????? | | ??????????????????????????????????? | | ??????????????????????????????????? | | ??????????????????????????????????? | | ??????????????????????????????????? | | ??????????????????????????????????? | | ??????????????????????????????????? | | ??????????????????????????????????? | | | | | | | +----------------------------------------------------+ Best States ------------- Heat Dissipation 28 Energy Generation 19 Energy Capacity 310 Matter Stores 300 Matter Capacity 300 Sight Range 16 Terrain Scan Density 10 Armor Coverage 225 Core Shielding 20 Evasion (%) 40 Recoil Reduction 2 Item Schematics ----------------- None Robot Schematics ------------------ None Fabricated ------------ Nothing Alien Tech Used ----------------- None Achievements -------------- None Challenges ------------ None Game ------ Seed IonicPoweredDissipator Manual? 0 Play Time 00:22:11 Cumulative 322.7 hours Start 2021.02.19 @ 19:18:51 End 2021.02.19 @ 19:54:18 Sessions 1 Manual Loads 0 Difficulty Rogue Special Mode None Game No. 262 Rogue 255 Adventurer 0 Explorer 7 Win Type - Total 11 Types 3/1/7/0/0/0/0/0/0 Lore% 78 Gallery% 93 Achievement% 75 Wizard Run 0 Options --------- ASCII 0 Keyboard 0 Movement Numpad Keybinds 0 Fullscreen 1 Font 18/X11Bold Map View 76x50 Tactical HUD 1 Map Filters NONE Filters NONE Steam 1 RUN: 5eafbefa-af23-4898-8253-1af11c733c63